Cogmind - Beta 16 @@@ ROGUE MODE // 2025.12.08 @ 16:32:13 Player: PoggyBison Result: Destroyed by G-34 Mercenary with Small Laser Performance ------------- Evolutions (1) 500 Regions Visited (3) 600 Robots Destroyed (30) 150 Value Destroyed (790) 790 Prototype IDs (5) 100 Alien Tech Used (0) 0 Bonus (0) 0 TOTAL SCORE: 2140 Bonus ------- None Cogmind --------- Core Integrity 0/400 Matter 280/300 Energy 125/125 System Corruption 14% Temperature Hot (203) Movement Walking (190) Ox1 Location -9/Storage Parts ------- > --- POWER (1) -------- Light Ion Engine > --- PROPULSION (3) --- Aluminum Leg Aluminum Leg > --- UTILITY (3) ------ Heat Sink Large Storage Unit System Shield > --- WEAPON (2) ------- Precision Beam Rifle Heavy Assault Rifle > --- INVENTORY (15) --- Nuclear Core Compact Wheel Heat Sink Medium Storage Unit Melee Analysis Suite Weapon Shielding High-powered Tractor Beam Small Laser Improved Heavy Machine Gun Flak Cannon Flak Cannon Rocket Launcher Peak State ------------ > --- POWER ------------ Nuclear Core > --- PROPULSION ------- Aluminum Leg Wheel Compact Wheel > --- UTILITY ---------- Large Storage Unit Salvage Targeting Computer System Shield > --- WEAPON ----------- Precision Beam Rifle Flak Cannon > --- INVENTORY -------- Nuclear Core Aluminum Leg Heat Sink Heat Sink Medium Storage Unit Melee Analysis Suite Weapon Shielding High-powered Tractor Beam Small Laser Flak Cannon Flak Cannon Rocket Launcher [Rating: 21] Favorites ----------- Power Ion Engine Engine Ion Engine Power Core Nuclear Core Propulsion Aluminum Leg Leg Aluminum Leg Wheel Wheel Utility Small Storage Unit Device Improved Terrain Scanner Storage Small Storage Unit Processor Salvage Targeting Computer Hackware System Shield Protection Weapon Shielding Weapon Flak Cannon Energy Gun Precision Beam Rifle Ballistic Gun Assault Rifle Ballistic Cannon Flak Cannon Launcher Mini Grenade Launcher Build | -11 -10 -9 -9 ------- Run | Yrd Mat Mat Sto Slots Evolved 2 | . . 2 . Power . | . . . . Propulsion 1 | . . 1 . Utility 1 | . . 1 . Weapon . | . . . . Parts Attached 37 | 8 4 17 8 Power 5 | 1 1 2 1 Engine 4 | 1 1 1 1 Core 1 | . . 1 . Reactor . | . . . . Propulsion 13 | 3 2 4 4 Treads . | . . . . Leg 7 | 2 . 1 4 Wheel 6 | 1 2 3 . Hover . | . . . . Flight . | . . . . Utility 9 | 2 . 5 2 Device 4 | 1 . 2 1 Storage 2 | 1 . 1 . Processor 1 | . . 1 . Hackware 1 | . . . 1 Protection 1 | . . 1 . Artifact . | . . . . Weapon 10 | 2 1 6 1 Energy Gun 3 | 1 . 2 . Energy Cannon . | . . . . Ballistic Gun 4 | 1 1 1 1 Ballistic Cannon 2 | . . 2 . Launcher 1 | . . 1 . Special Weapon . | . . . . Impact Weapon . | . . . . Slashing Weapon . | . . . . Piercing Weapon . | . . . . Special Melee Weapon . | . . . . Unidentified Prototypes 2 | . . 2 . Parts Lost 16 | . 7 5 4 Power 3 | . 1 1 1 Propulsion 9 | . 2 4 3 Utility 1 | . 1 . . Weapon 3 | . 3 . . Highest Loss Streak 6 | . 6 2 2 To Critical Strikes . | . . . . Average Backups 7 | 4 7 6 11 Power . | 1 1 . 1 Propulsion 1 | 2 3 . . Utility 3 | . 1 2 5 Weapon 2 | . . 2 4 Tool/Special . | . . . . Unused Backups 11 | . . 2 9 Power 1 | . . . 1 Propulsion . | . . . . Utility 5 | . . 2 3 Weapon 5 | . . . 5 Tool/Special . | . . . . Average Slot Usage (%) 90 | . 93 88 91 Engine 5 | . 13 7 1 Core 5 | . . 3 9 Leg 10 | . 24 . 13 Wheel 17 | . 2 29 11 Device 5 | . 12 7 . Storage 11 | . 14 11 11 Processor 6 | . . 4 10 Hackware 4 | . . . 10 Protection 2 | . . 6 . Energy Gun 7 | . 8 3 11 Ballistic Gun 6 | . 16 3 4 Ballistic Cannon 6 | . . 8 6 Peak Build Rating 21 | 9 9 19 21 Average Rating 14 | 7 8 14 19 On Entrance 7 | . 9 4 18 Avg Prop Armor Cover (%) 7 | 4 . 7 8 Naked Turns . | . . . . Heaviest Build 36 | 15 15 36 36 Greatest Support 48 | 20 20 48 30 Greatest Overweight (x) 3 | . . 2 3 Average Overweight (x) . | . . . 1 Largest Inventory Capacity 15 | 8 8 15 15 Average Capacity 10 | 7 8 8 15 Most Carried 13 | 8 8 9 13 Average Carried 8 | 4 7 6 11 Final Capacity 15 | 8 8 15 15 Final Carried 12 | 8 4 8 12 Class Distribution -------------------- 100% | Mutant Dominant Class ---------------- Mutant | -10/Materials Mutant | -9/Materials Mutant | -9/Storage Resources | -11 -10 -9 -9 ----------- Run | Yrd Mat Mat Sto Matter Collected 945 | 370 . 323 252 Remotely 157 | . . 157 . Salvage Created 1036 | 176 147 246 467 Parts 60 | 9 8 13 30 Haulers Intercepted . | . . . . Recyclers Shooed 2 | 1 . . 1 Parts Field Recycled . | . . . . Retrieved Matter . | . . . . Parts Self-Destructed . | . . . . Prevented . | . . . . Parts Restored . | . . . . Kills | -11 -10 -9 -9 ------- Run | Yrd Mat Mat Sto Combat Hostiles Destroyed 23 | . 3 5 15 Guns 15 | . 3 1 11 Cannons 6 | . . 2 4 AOE 2 | . . 2 . Classes Destroyed 7 | 3 1 2 1 Worker 2 | 2 . . . Tunneler 3 | 3 . . . Recycler 2 | 1 . 1 . Swarmer 4 | . . 1 3 Grunt 15 | . 3 2 10 Duelist 1 | . . . 1 Sentry 3 | . . 2 1 Best Kill Streak 5 | 2 2 2 5 Combat Bots Only 5 | . 2 2 5 Max Kills in Single Turn 1 | 1 1 1 1 Gunslinging . | . . . . Exploded 1 | . . 1 . Melee . | . . . . Uniques/NPCs Destroyed . | . . . . Combat | -11 -10 -9 -9 -------- Run | Yrd Mat Mat Sto Hostile Shots Fired 234 | . 90 64 80 Missed 64 | . 28 18 18 Hits 170 | . 62 46 62 Melee 2 | . . . 2 Projectile 168 | . 62 46 60 Damage Taken 1943 | 5 732 469 737 Core 506 | . 96 156 254 Absorbed by Shields 54 | . . 54 . Redirected to Shielding 28 | . . 28 . Core Remaining (%) 80 | 100 61 . . Volleys Fired 89 | 24 14 12 39 Largest 2 | 2 2 2 2 Hottest 98 | 60 60 98 98 Shots Fired 174 | 48 28 21 77 Gun 143 | 48 28 8 59 Cannon 27 | . . 9 18 Launcher 4 | . . 4 . Special . | . . . . Kinetic 100 | 24 22 15 39 Thermal 40 | . . 2 38 Explosive 4 | . . 4 . Electromagnetic 30 | 24 6 . . Robot Hit Streak 13 | 10 5 8 13 Robot Miss Streak 6 | 4 2 5 6 Penetration Max . | . . . . Secondary Targets . | . . . . Shots Hit Robots 121 | 29 17 16 59 Core Hits 60 | 7 7 14 32 Critical Kills . | . . . . Critical Parts Destroyed . | . . . . Critical Strikes 6 | . . . 6 Burn 6 | . . . 6 Melee Attacks . | . . . . Impact . | . . . . Slashing . | . . . . Piercing . | . . . . Sneak Attacks . | . . . . Combat Hostiles . | . . . . Follow-up Attacks . | . . . . Damage Inflicted 2094 | 399 271 435 989 Guns 1479 | 368 265 77 769 Cannons 322 | . . 108 214 Explosions 273 | 31 . 242 . Melee . | . . . . Ramming 20 | . 6 8 6 Kinetic 946 | 166 209 150 421 Thermal 628 | 31 . 35 562 Explosive 242 | . . 242 . Electromagnetic 258 | 202 56 . . Impact . | . . . . Slashing . | . . . . Piercing . | . . . . Highest Corruption 14 | . 2 4 14 Average Corruption 9 | . 1 4 12 Corruption Purged . | . . . . Corruption Blocked . | . . . . Effects 19 | . . 4 15 Message Errors 3 | . . . 3 Matter Fused 4 | . . 1 3 Heat Flow Errors 4 | . . 1 3 Energy Discharges 1 | . . 1 . Parts Rejected 1 | . . . 1 Data Loss (minor) 3 | . . 1 2 Data Loss (major) 1 | . . . 1 Alerts 1 | . . . 1 Weapon Failures 1 | . . . 1 Overload Shots . | . . . . Overflow Damage . | . . . . Projectiles . | . . . . Explosions . | . . . . Melee . | . . . . Knockbacks 14 | . . 1 13 Impact . | . . . . Kinetic 14 | . . 1 13 Secondary . | . . . . Self-Inflicted Damage 9 | 5 . 4 . Shots 1 | 1 . . . Rammed 4 | . 2 2 . Targets Rammed 10 | . 7 2 1 Kicked 6 | . 5 . 1 Crushed . | . . . . Highest Temperature 375 | 12 51 150 375 Average Temperature 89 | 12 25 35 107 Received Heat Transfer 879 | . 408 165 306 Effects 1 | . . . 1 Short Circuit 1 | . . . 1 Siege Activations . | . . . . Martial Activations . | . . . . Shielding Activations . | . . . . Robots Disrupted . | . . . . Combat Hostiles . | . . . . Robots Corrupted . | . . . . Combat Hostiles . | . . . . Parts Fried 1 | 1 . . . Impact Corruptions . | . . . . Robots Melted . | . . . . Combat Hostiles . | . . . . Parts Melted 5 | . . . 5 Heat Transferred 1789 | 50 . 74 1665 Parts Sabotaged . | . . . . Parts Stolen . | . . . . Parts Stripped . | . . . . Power Chain Reactions 1 | 1 . . . Alert | -11 -10 -9 -9 ------- Run | Yrd Mat Mat Sto Maximum Alert Level 1 | . . . 1 Low Security (%) 96 | 100 100 100 89 Level 1 3 | . . . 10 Level 2 . | . . . . Level 3 . | . . . . Level 4 . | . . . . Level 5 . | . . . . High Security . | . . . . Max Security . | . . . . Peak Influence 212 | 5 45 75 212 Initial . | . . . . Average 41 | 1 6 31 85 Influence Increases 750 | 30 100 191 429 Destroy 0b10 Robot/C 460 | . 60 100 300 Destroy 0b10 Robot/NC 35 | 30 . 5 . Destroy Leader 110 | . 10 30 70 Successful Hack 35 | . . 7 28 Disable Machine 15 | . 15 . . Destroy Structure 35 | . . 34 1 Partial Spotted 15 | . . . 15 Lose Combat Pursuer 45 | . 15 15 15 Influence Decreases 564 | 30 100 191 243 Time Decay 445 | 30 35 177 203 Lost Part 119 | . 65 14 40 Squads Dispatched 8 | . 2 1 5 Investigation 2 | . 1 . 1 Extermination . | . . . . Reinforcement 3 | . 1 1 1 Assault . | . . . . Garrison 3 | . . . 3 Intercept . | . . . . Searches Triggered . | . . . . Construction Impeded . | . . . . Haulers Reinforced . | . . . . Active Scanning Responses . | . . . . Cargo Convoy Interrupts . | . . . . Stealth | -11 -10 -9 -9 --------- Run | Yrd Mat Mat Sto Distress Signals 2 | . 1 . 1 Communications Jammed . | . . . . Distress Signals . | . . . . Times Spotted 50 | . 12 15 23 Peak Tracking Total 7 | . 7 4 5 Tactical Retreats 3 | . 1 1 1 Traps | -11 -10 -9 -9 ------- Run | Yrd Mat Mat Sto Traps Triggered 8 | . 3 1 4 Indirectly . | . . . . Trap Hack Attempts . | . . . . Triggered . | . . . . Disarmed . | . . . . Reprogrammed . | . . . . Reused . | . . . . Traps Extracted . | . . . . Installed . | . . . . Triggered . | . . . . Machines | -11 -10 -9 -9 ---------- Run | Yrd Mat Mat Sto Machines Disabled 1 | . 1 . . Max in Single Turn 1 | . 1 . . Machines Repaired . | . . . . Machines Dismantled . | . . . . Machines Sabotaged . | . . . . Overloaded Fab Kills . | . . . . Hacking | -11 -10 -9 -9 --------- Run | Yrd Mat Mat Sto Machines Accessed 5 | . . 1 4 Terminals 5 | . . 1 4 Fabricators . | . . . . Repair Stations . | . . . . Recycling Units . | . . . . Scanalyzers . | . . . . Garrison Access . | . . . . Total Hacks 13 | . . 2 11 Successful 5 | . . 1 4 Failed 8 | . . 1 7 Catastrophic 4 | . . 1 3 Database Lockouts . | . . . . Manual . | . . . . Terminals 13 | . . 2 11 Fabricators . | . . . . Repair Stations . | . . . . Recycling Units . | . . . . Scanalyzers . | . . . . Garrison Access . | . . . . Terminal Hacks 5 | . . 1 4 Part Schematic 1 | . . . 1 Robot Schematic 1 | . . . 1 Prototype ID Bank 1 | . . . 1 Open Door 1 | . . . 1 Branch Access Points 1 | . . 1 . Fabricator Hacks . | . . . . Repair Station Hacks . | . . . . Recycling Unit Hacks . | . . . . Scanalyzer . | . . . . Garrison Access Hacks . | . . . . Unauthorized Hacks . | . . . . Terminals . | . . . . Fabricators . | . . . . Repair Stations . | . . . . Recycling Units . | . . . . Scanalyzers . | . . . . Garrison Access . | . . . . Data Cores Recovered . | . . . . Used . | . . . . Hacking Detections 5 | . . 1 4 Full Trace Events 3 | . . 1 2 Feedback Events . | . . . . Feedback Blocked . | . . . . Robot Schematics Acquired 1 | . . . 1 Robots Built . | . . . . Authchips . | . . . . Time . | . . . . Total Robot Build Rating . | . . . . Part Schematics Acquired 1 | . . . 1 Parts Built . | . . . . Authchips . | . . . . Time . | . . . . Total Part Build Rating . | . . . . Part Studies Acquired . | . . . . Parts Repaired . | . . . . Time . | . . . . Parts Recycled . | . . . . Recycled Matter . | . . . . Retrieved Matter . | . . . . Retrieved Components . | . . . . Parts Scanalyzed . | . . . . Part Schematics Acquired . | . . . . Parts Damaged . | . . . . Bothacking | -11 -10 -9 -9 ------------ Run | Yrd Mat Mat Sto Used RIF Installer . | . . . . Robots Hacked . | . . . . Non-combat . | . . . . Combat . | . . . . Robot Hacks Applied . | . . . . Relay Couplers Released . | . . . . Fabnet Peak Effective % . | . . . . Robots Rewired . | . . . . Allies Hacked . | . . . . Hacks Repelled . | . . . . Allies | -11 -10 -9 -9 -------- Run | Yrd Mat Mat Sto Total Allies . | . . . . Largest Group . | . . . . Highest-Rated Group . | . . . . Highest-Rated Ally . | . . . . Total Orders . | . . . . Ally Attacks . | . . . . Total Damage . | . . . . Kills . | . . . . Allies Corrupted . | . . . . Allies Melted . | . . . . Intel | -11 -10 -9 -9 ------- Run | Yrd Mat Mat Sto Active Infowar (turns) 312 | 154 158 . . Terrain 312 | 154 158 . . Robot Analysis Total . | . . . . Derelict Logs Recovered . | . . . . Drone Launches . | . . . . Drone Recoveries . | . . . . Exploration | -11 -10 -9 -9 ------------- Run | Yrd Mat Mat Sto Turns Passed 1255 | 224 181 428 422 Spaces Moved 770 | 111 108 338 213 Core 1 | 1 . . . Treads . | . . . . Legs 248 | 105 82 4 57 Wheels 521 | 5 26 334 156 Hover . | . . . . Flight . | . . . . Fastest Speed 50 | 50 80 80 105 Average Speed 107 | 118 110 89 128 Slowest Speed 330 | 120 120 260 330 Overloaded Moves . | . . . . Propulsion Burnouts . | . . . . Robots Hopped . | . . . . Potential Cave-ins . | . . . . Cave-ins Triggered . | . . . . Exploration Rate (%) 27 | 6 32 32 38 Regions Visited 3 Branch Regions 1 Pre-discovered Areas . | . . . . Known Exits Taken 1 | . . 1 . Unknown Exits Taken 2 | 1 1 . . Scrap Searched . | . . . . Spaces Dug . | . . . . Terrain Destroyed 45 | 8 . 37 . Melee . | . . . . Projectile . | . . . . AOE 45 | 8 . 37 . Terrain Rammed . | . . . . Walls Destroyed . | . . . . Machines Disabled . | . . . . Actions | -11 -10 -9 -9 --------- Run | Yrd Mat Mat Sto Total 1013 | 151 138 442 282 Wait 65 | 1 6 46 12 Move 768 | 110 107 338 213 Hop . | . . . . Pick Up 29 | 8 . 14 7 Fast Attach 19 | 7 . 8 4 Attach 12 | . 4 5 3 Detach 1 | . . 1 . Swap 9 | 1 . 7 1 Drop 12 | . . 10 2 Fire 89 | 24 14 12 39 Melee . | . . . . Ram 3 | . 2 1 . Kick 6 | . 5 . 1 Crush . | . . . . Escape Stasis . | . . . . Rewire . | . . . . Trap . | . . . . Miscellaneous . | . . . . Route ------- -11/Scrapyard -10/Materials -9/Materials (discovered 4 exits: *Min x2 / *Sto x2) -9/Storage History --------- Turn | Location | Event 17 | -11/Scrapyard | Discovered new exit (range 15) 225 | -11/Scrapyard | Entered Materials 302 | -10/Materials | Build established: Mutant 394 | -10/Materials | Discovered new exit (range 15) 406 | -10/Materials | Entered another Materials area 406 | -9/Materials | Evolved 2 slots: Propulsion x1, Utility x1 414 | -9/Materials | Lost 6 parts (1p2n1u2w) 428 | -9/Materials | Identified exit to Mines 428 | -9/Materials | Identified exit to Storage 834 | -9/Materials | Entered Storage 931 | -9/Storage | System corruption reached 10% 1031 | -9/Storage | Core integrity fell below 50% 1048 | -9/Storage | Garrison activated, responded to threat 1216 | -9/Storage | Core integrity fell below 20% 1256 | -9/Storage | Destroyed by G-34 Mercenary with Small Laser Last Messages --------------- (Burn). 01187_ Aluminum Leg melted. 01187_ Sml. Laser melted. 01187_ Heat Sink melted. 01187_ G-34 Mercenary destroyed. 01194_ Acquired 9 matter. 01206_ S-10 Pest destroyed. 01213_ Nuclear Core destroyed. 01215_ S-10 Pest destroyed. 01219_ Acquired Lgt. Ion Engine. 01220_ R-06 Scavenger collects Lgt. Ion Engine. 01221_ K-01 Serf collects debris. 01221_ Acquired 17 matter. 01233_ R-06 Scavenger collects Lgt. Assault Rifle. 01235_ Kicked K-01 Serf. 01236_ K-01 Serf cleans the Garrison Access. 01237_ System corrupted: Heat flow error (+270). 01239_ Discarded Salvage Targeting Computer. 01256_ Aluminum Leg destroyed. Map ----- +----------------------------------------------------+ | ?########### ""??" #???????# "???" #?? | | ???????????# ""???" #???????# ""??" #?? | | ???????????# "???"" #???????# "??"" #?? | | ???????????# "??"" #?###???# "???" #?? | | ???????????# """" #?# #???# """"" #?? | | ???????????# ###!#???# #?? | | ???????????# % ##T%#???###########?? | | ???????????#####+##+###%######??????????? | | ???????????????# [ #??????????? | | ???????????????# ##### #??????????? | | ????????????####% #???# #??????????? | | ????? % #???# #??????????? | | ????? ######## #???# #??????????? | | ??????? ??###???# #???# #??????????? | | ????????""" ???""#???# #???# #??????????? | | ????????"""????G"#???# #?###+######?????? | | ????????""?????"" ???# ### % #?????? | | ????????""" ??## ???# += #?????? | | ???# "??" ?# ???# #% #?????? | | ???# ## ##### %# """""" #?????? | | ???# %/["??????#?????? | | ?????????#######g#########*"????????????? | | ???????????????#%#???????# "????????????? | | ???????????????# #???????# ????????????? | | ???????????????# #???????# ???????????? | | ???????????????#@#???????#####??????????? | | ???????????????#Yk ?????????????????????? | | ???????????????+ ???????????????????? | | ???????????????# g ?????????????????? | | ???????????????### ???????????????? | | ?????????????????? #??????????????? | | ??????????????????a #??????????????? | | ?????????????????? g ^ #??????????????? | | ???????????????????^ a +??????????????? | | ??????????????????? #??????????????? | | ??????????????????? #??????????????? | | ???????????????????? #??????????????? | | ???????????????????? #??????????????? | | ???????????????????? ????????????????? | | ????????????????????????????????????????? | | ????????????????????????????????????????? | | ????????????????????????????????????????? | | ????????????????????????????????????????? | | ????????????????????????????????????????? | | ????????????????????????????????????????? | | ????????????????????????????????????????? | | ????????????????????????????????????????? | | ????????????????????????????????????????? | | ????????????????????????????????????????? | | ????????????????????????????????????????? | +----------------------------------------------------+ Best States ------------- Heat Dissipation 38 Energy Generation 14 Energy Capacity 250 Matter Stores 300 Matter Capacity 300 Sight Range 16 Terrain Scan Range 16 Terrain Scan Density 10 Weapon Shielding 33 Evasion (%) 55 Salvage Targeting 1 Defensive Hacking 10 Item Schematics ----------------- Weapon Cycler | -9/Storage | Hacked Robot Schematics ------------------ A-02 Transporter | -9/Storage | Hacked Fabricated ------------ Nothing Repaired ---------- Nothing Studied --------- None Alien Tech Used ----------------- None Achievements -------------- None Challenges ------------ None Game ------ Seed ImpulseMolecularSword Manual? 0 Play Time 00:28:47 Cumulative 47.6 hours Start 2025.12.05 @ 15:38:54 End 2025.12.08 @ 16:32:13 Sessions 3 Manual Loads 0 Difficulty Rogue Special Mode None Game No. 30 Rogue 30 Adventurer 0 Explorer 0 Win Type - Total 0 Types 0/0/0/0/0/0/0/0/0/0 Lore% 10 Gallery% 31 Achievement% 19 Wizard Run 0 Options --------- Layout 2 ASCII 0 Keyboard 0 Movement Numpad Keybinds 0 Fullscreen 1 Font 24/Smallcaps Map View 50x44 Zoom Use 8% Tactical HUD 1 Map Filters NONE Filters NONE Steam 1 RUN: 9071bb33-5add-453d-aa04-95dca883fb0b